Cogmind - Beta 14 @@@ ROGUE MODE // 2025.01.16 @ 02:15:51 Player: celerysam Result: Destroyed by G-47 Trooper with Particle Gun Performance ------------- Evolutions (2) 1000 Regions Visited (4) 800 Robots Destroyed (18) 90 Value Destroyed (512) 512 Prototype IDs (0) 0 Alien Tech Used (0) 0 Bonus (700) 700 TOTAL SCORE: 3102 Bonus ------- Entered Garrisons 200 Used RIF Installer 500 Cogmind --------- Core Integrity 0/550 Matter 290/300 Energy 77/100 System Corruption 0% Temperature Cool (9) Movement Core (50) Location -8/Garrison Parts ------- > --- POWER (1) -------- (None) > --- PROPULSION (4) --- (None) > --- UTILITY (4) ------ Improved Heat Sink Visual Processing Unit > --- WEAPON (2) ------- Mace > --- INVENTORY (5) ---- Improved Ion Engine Relay Coupler [Grunt] (27) Peak State ------------ > --- POWER ------------ Light Ion Engine > --- PROPULSION ------- Wheel Compact Wheel Hover Unit Hover Unit > --- UTILITY ---------- Small Storage Unit Visual Processing Unit Hacking Suite > --- WEAPON ----------- Field Laser Mace > --- INVENTORY -------- Ion Engine Light Nuclear Core Armored Treads Compact Wheel Medium Laser Grenade Launcher [Rating: 17] Favorites ----------- Power Light Ion Engine Engine Light Ion Engine Power Core Light Nuclear Core Propulsion Hover Unit Treads Armored Treads Leg Aluminum Leg Wheel Compact Wheel Hover Unit Hover Unit Utility Small Storage Unit Device Improved Heat Sink Storage Small Storage Unit Processor Visual Processing Unit Hackware Hacking Suite Protection Light Armor Plating Weapon Light Assault Rifle Energy Gun Particle Gun Ballistic Gun Light Assault Rifle Launcher Grenade Launcher Impact Weapon Mace Build | -11 -10 -9 -8 -8 ------- Run | Yrd Mat Mat Mat Gar Slots Evolved 4 | . . 2 2 . Power . | . . . . . Propulsion 2 | . . 1 1 . Utility 2 | . . 1 1 . Weapon . | . . . . . Parts Attached 33 | 8 7 5 3 10 Power 5 | 1 1 1 . 2 Engine 4 | 1 1 1 . 1 Core 1 | . . . . 1 Reactor . | . . . . . Propulsion 13 | 4 2 2 2 3 Treads 3 | . . 1 . 2 Leg 2 | 2 . . . . Wheel 5 | 2 . . 2 1 Hover 3 | . 2 1 . . Flight . | . . . . . Utility 6 | 1 2 1 . 2 Device 1 | . . . . 1 Storage 1 | 1 . . . . Processor 2 | . 2 . . . Hackware 1 | . . 1 . . Protection 1 | . . . . 1 Artifact . | . . . . . Weapon 9 | 2 2 1 1 3 Energy Gun 3 | . 1 . 1 1 Energy Cannon . | . . . . . Ballistic Gun 3 | 2 1 . . . Ballistic Cannon . | . . . . . Launcher 1 | . . . . 1 Special Weapon . | . . . . . Impact Weapon 2 | . . 1 . 1 Slashing Weapon . | . . . . . Piercing Weapon . | . . . . . Special Melee Weapon . | . . . . . Unidentified Prototypes . | . . . . . Parts Lost 18 | . 1 . 1 16 Power 3 | . . . . 3 Propulsion 8 | . . . 1 7 Utility 4 | . 1 . . 3 Weapon 3 | . . . . 3 Highest Loss Streak 11 | . 1 . 1 11 To Critical Strikes 2 | . . . . 2 Average Slot Usage (%) 86 | . 96 93 81 73 Engine 10 | . 14 11 9 6 Treads 2 | . . 4 . 5 Leg 4 | . 10 . . . Wheel 4 | . . . 3 11 Hover 14 | . 16 24 23 6 Storage 11 | . 14 11 9 7 Processor 10 | . 11 11 9 9 Hackware 4 | . . 8 9 7 Energy Gun 6 | . 4 11 9 7 Ballistic Gun 11 | . 23 9 . . Impact Weapon 3 | . . 1 9 8 Peak Build Rating 17 | 6 9 16 17 17 Average Rating 10 | 4 7 13 15 14 On Entrance 9 | . 6 9 14 17 Naked Turns . | . . . . . Heaviest Build 18 | 13 13 13 13 18 Greatest Support 40 | 20 20 18 26 40 Greatest Overweight (x) 3 | 1 3 . 1 1 Average Overweight (x) . | . . . . . Largest Inventory Capacity 8 | 8 8 8 8 8 Average Capacity 7 | 7 8 8 8 7 Most Carried 8 | 6 8 8 8 8 Average Carried 6 | 4 7 7 7 6 Final Capacity 8 | 8 8 8 8 5 Final Carried 8 | 6 8 7 6 2 Class Distribution -------------------- 61% | Mutant 38% | Scavenger-Mutant Dominant Class ---------------- Mutant | -10/Materials Scavenger-Mutant | -9/Materials Scavenger-Mutant | -8/Materials Mutant | -8/Garrison Resources | -11 -10 -9 -8 -8 ----------- Run | Yrd Mat Mat Mat Gar Matter Collected 563 | 296 131 . 37 99 Remotely . | . . . . . Salvage Created 601 | 52 271 . 56 222 Parts 34 | 1 15 . 5 13 Haulers Intercepted . | . . . . . Recyclers Shooed . | . . . . . Parts Field Recycled . | . . . . . Retrieved Matter . | . . . . . Parts Self-Destructed . | . . . . . Prevented . | . . . . . Kills | -11 -10 -9 -8 -8 ------- Run | Yrd Mat Mat Mat Gar Combat Hostiles Destroyed 16 | . 5 . 3 8 Melee 2 | . . . 1 1 Guns 8 | . 5 . 2 1 AOE 3 | . . . . 3 Classes Destroyed 5 | 1 2 . 1 1 Recycler 1 | 1 . . . . Watcher 1 | . 1 . . . Swarmer 7 | . . . 3 4 Grunt 7 | . 5 . . 2 Sentry 2 | . . . . 2 Best Kill Streak 4 | 1 3 . 3 4 Combat Bots Only 4 | . 2 . 3 4 Max Kills in Single Turn 2 | 1 1 . 1 2 Gunslinging . | . . . . . Exploded 2 | . . . . 2 Melee 1 | . . . 1 1 Uniques/NPCs Destroyed . | . . . . . Combat | -11 -10 -9 -8 -8 -------- Run | Yrd Mat Mat Mat Gar Hostile Shots Fired 290 | . 36 8 23 223 Missed 87 | . 9 4 9 65 Damage Taken 2281 | . 372 62 151 1696 Core 624 | . 61 . 41 522 Absorbed by Shields 12 | . . . . 12 Core Remaining (%) 91 | 100 75 100 . . Volleys Fired 54 | 4 29 . 6 15 Largest 2 | 2 2 . 1 1 Hottest 85 | 40 85 . 63 63 Shots Fired 87 | 8 58 . 6 15 Gun 84 | 8 58 . 6 12 Cannon . | . . . . . Launcher 3 | . . . . 3 Special . | . . . . . Kinetic 60 | 8 52 . . . Thermal 24 | . 6 . 6 12 Explosive 3 | . . . . 3 Electromagnetic . | . . . . . Robot Hit Streak 10 | 6 10 . 3 7 Robot Miss Streak 4 | 1 4 . 2 3 Penetration Max . | . . . . . Secondary Targets 1 | . 1 . . . Max Gunslinging Chain 1 | . 1 . . . Shots Hit Robots 68 | 7 41 . 4 16 Core Hits 38 | 2 17 . 3 16 Critical Kills . | . . . . . Critical Parts Destroyed 2 | . . . . 2 Critical Strikes 3 | . 1 . . 2 Burn 1 | . 1 . . . Smash 2 | . . . . 2 Melee Attacks 16 | . . . 1 15 Impact 16 | . . . 1 15 Slashing . | . . . . . Piercing . | . . . . . Sneak Attacks . | . . . . . Combat Hostiles . | . . . . . Follow-up Attacks . | . . . . . Damage Inflicted 1173 | 72 399 . 105 597 Guns 680 | 72 399 . 66 143 Cannons . | . . . . . Explosions 250 | . . . . 250 Melee 243 | . . . 39 204 Ramming . | . . . . . Kinetic 393 | 72 321 . . . Thermal 287 | . 78 . 66 143 Explosive 250 | . . . . 250 Electromagnetic . | . . . . . Impact 243 | . . . 39 204 Slashing . | . . . . . Piercing . | . . . . . Highest Corruption . | . . . . . Average Corruption . | . . . . . Corruption Purged . | . . . . . Corruption Blocked . | . . . . . Overload Shots . | . . . . . Overflow Damage 74 | . . . . 74 Projectiles . | . . . . . Explosions . | . . . . . Melee 74 | . . . . 74 Knockbacks . | . . . . . Impact . | . . . . . Kinetic . | . . . . . Secondary . | . . . . . Self-Inflicted Damage . | . . . . . Shots . | . . . . . Rammed . | . . . . . Targets Rammed . | . . . . . Kicked . | . . . . . Crushed . | . . . . . Highest Temperature 240 | . 240 . 96 121 Average Temperature 56 | . 58 . 44 60 Received Heat Transfer 747 | . 204 9 27 507 Siege Activations . | . . . . . Robots Corrupted 3 | . . . . 3 Combat Hostiles 3 | . . . . 3 Parts Fried 1 | . . . . 1 Impact Corruptions 5 | . . . . 5 Robots Melted . | . . . . . Combat Hostiles . | . . . . . Parts Melted 1 | . 1 . . . Heat Transferred 777 | . 259 . 148 370 Parts Sabotaged . | . . . . . Parts Stolen . | . . . . . Parts Stripped . | . . . . . Power Chain Reactions . | . . . . . Alert | -11 -10 -9 -8 -8 ------- Run | Yrd Mat Mat Mat Gar Peak Influence 242 | 5 175 15 91 242 Initial 59 | . 3 . 1 59 Average 84 | . 82 2 41 149 Maximum Alert Level 1 | . . . . 1 Low Security (%) 98 | 100 100 100 100 96 Level 1 1 | . . . . 3 Level 2 . | . . . . . Level 3 . | . . . . . Level 4 . | . . . . . Level 5 . | . . . . . High Security . | . . . . . Max Security . | . . . . . Squads Dispatched 1 | . 1 . . . Investigation . | . . . . . Extermination . | . . . . . Reinforcement 1 | . 1 . . . Assault . | . . . . . Garrison . | . . . . . Intercept . | . . . . . Searches Triggered . | . . . . . Construction Impeded . | . . . . . Haulers Reinforced . | . . . . . Active Scanning Responses . | . . . . . Cargo Convoy Interrupts . | . . . . . Stealth | -11 -10 -9 -8 -8 --------- Run | Yrd Mat Mat Mat Gar Distress Signals 1 | . 1 . . . Communications Jammed . | . . . . . Distress Signals . | . . . . . Times Spotted 40 | . 11 3 6 20 Peak Tracking Total 9 | . 4 3 5 9 Tactical Retreats . | . . . . . Traps | -11 -10 -9 -8 -8 ------- Run | Yrd Mat Mat Mat Gar Traps Triggered 2 | . . . . 2 Indirectly . | . . . . . Trap Hack Attempts . | . . . . . Triggered . | . . . . . Disarmed . | . . . . . Reprogrammed . | . . . . . Reused . | . . . . . Traps Extracted . | . . . . . Installed . | . . . . . Triggered . | . . . . . Machines | -11 -10 -9 -8 -8 ---------- Run | Yrd Mat Mat Mat Gar Machines Disabled 4 | . . . . 4 Max in Single Turn 1 | . . . . 1 Garrison Relay 1 | . . . . 1 Machines Repaired . | . . . . . Machines Dismantled . | . . . . . Machines Sabotaged . | . . . . . Overloaded Fab Kills . | . . . . . Hacking | -11 -10 -9 -8 -8 --------- Run | Yrd Mat Mat Mat Gar Machines Accessed 5 | . 3 . 1 1 Terminals 4 | . 3 . . 1 Fabricators . | . . . . . Repair Stations . | . . . . . Recycling Units . | . . . . . Scanalyzers . | . . . . . Garrison Access 1 | . . . 1 . Total Hacks 10 | . 7 . 1 2 Successful 2 | . 1 . 1 . Failed 8 | . 6 . . 2 Catastrophic 1 | . 1 . . . Database Lockouts . | . . . . . Manual 5 | . 5 . . . Terminals 9 | . 7 . . 2 Fabricators . | . . . . . Repair Stations . | . . . . . Recycling Units . | . . . . . Scanalyzers . | . . . . . Garrison Access 1 | . . . 1 . Terminal Hacks . | . . . . . Fabricator Hacks . | . . . . . Repair Station Hacks . | . . . . . Recycling Unit Hacks . | . . . . . Scanalyzer . | . . . . . Garrison Access Hacks 1 | . . . 1 . Unlock Access 1 | . . . 1 . Unauthorized Hacks 1 | . 1 . . . Terminals 1 | . 1 . . . Assimilate 1 | . 1 . . . Fabricators . | . . . . . Repair Stations . | . . . . . Recycling Units . | . . . . . Scanalyzers . | . . . . . Garrison Access . | . . . . . Data Cores Recovered . | . . . . . Used . | . . . . . Hacking Detections 3 | . 3 . . . Full Trace Events . | . . . . . Feedback Events . | . . . . . Feedback Blocked . | . . . . . Robot Schematics Acquired . | . . . . . Robots Built . | . . . . . Authchips . | . . . . . Time . | . . . . . Total Robot Build Rating . | . . . . . Part Schematics Acquired . | . . . . . Parts Built . | . . . . . Authchips . | . . . . . Time . | . . . . . Total Part Build Rating . | . . . . . Parts Repaired . | . . . . . Time . | . . . . . Parts Recycled . | . . . . . Recycled Matter . | . . . . . Retrieved Matter . | . . . . . Retrieved Components . | . . . . . Parts Scanalyzed . | . . . . . Part Schematics Acquired . | . . . . . Parts Damaged . | . . . . . Bothacking | -11 -10 -9 -8 -8 ------------ Run | Yrd Mat Mat Mat Gar Used RIF Installer 1 | . . . . 1 Robots Hacked . | . . . . . Non-combat . | . . . . . Combat . | . . . . . Robot Hacks Applied . | . . . . . Relay Couplers Released 4 | . . . . 4 Machine Destruction 4 | . . . . 4 Fabnet Peak Effective % . | . . . . . Robots Rewired . | . . . . . Allies Hacked . | . . . . . Hacks Repelled . | . . . . . Allies | -11 -10 -9 -8 -8 -------- Run | Yrd Mat Mat Mat Gar Total Allies 1 | . 1 . . . Largest Group 1 | . 1 1 . . Highest-Rated Group 10 | . 10 10 . . Highest-Rated Ally 10 | . 10 10 . . Total Orders . | . . . . . Ally Attacks . | . . . . . Total Damage . | . . . . . Kills . | . . . . . Allies Corrupted . | . . . . . Allies Melted . | . . . . . Intel | -11 -10 -9 -8 -8 ------- Run | Yrd Mat Mat Mat Gar Robot Analysis Total . | . . . . . Derelict Logs Recovered . | . . . . . Drone Launches . | . . . . . Drone Recoveries . | . . . . . Exploration | -11 -10 -9 -8 -8 ------------- Run | Yrd Mat Mat Mat Gar Turns Passed 1030 | 113 410 117 55 335 Spaces Moved 796 | 67 320 165 57 187 Core 8 | 2 4 . . 2 Treads 76 | . . . . 76 Legs 129 | 27 102 . . . Wheels 159 | 38 . . 12 109 Hover 424 | . 214 165 45 . Flight . | . . . . . Fastest Speed 50 | 50 56 52 52 90 Average Speed 86 | 105 78 63 62 123 Slowest Speed 200 | 120 200 76 116 170 Overloaded Moves . | . . . . . Propulsion Burnouts . | . . . . . Robots Hopped . | . . . . . Cave-ins Triggered . | . . . . . Exploration Rate (%) 29 | 5 66 21 15 39 Regions Visited 4 Branch Regions . Pre-discovered Areas . | . . . . . Known Exits Taken 1 | . . . 1 . Unknown Exits Taken 3 | 1 1 1 . . Scrap Searched . | . . . . . Spaces Dug . | . . . . . Terrain Destroyed 3 | . . . . 3 Melee . | . . . . . Projectile . | . . . . . AOE 3 | . . . . 3 Terrain Rammed . | . . . . . Walls Destroyed . | . . . . . Machines Disabled . | . . . . . Actions | -11 -10 -9 -8 -8 --------- Run | Yrd Mat Mat Mat Gar Total 1024 | 102 429 176 69 248 Wait 76 | 12 64 . . . Move 793 | 66 319 164 57 187 Hop . | . . . . . Pick Up 26 | 11 6 2 1 6 Fast Attach 8 | 1 2 3 . 2 Attach 17 | 5 3 . 2 7 Detach . | . . . . . Swap 8 | 2 2 2 1 1 Drop 11 | 1 4 5 1 . Fire 54 | 4 29 . 6 15 Melee 16 | . . . 1 15 Ram . | . . . . . Kick . | . . . . . Crush . | . . . . . Escape Stasis 15 | . . . . 15 Rewire . | . . . . . Trap . | . . . . . Miscellaneous . | . . . . . Route ------- -11/Scrapyard -10/Materials (discovered 2 exits: [*Mat] / [*Min]) -9/Materials -8/Materials -8/Garrison History --------- Turn | Location | Event 23 | -11/Scrapyard | Discovered new exit (range 15) 114 | -11/Scrapyard | Entered Materials 315 | -10/Materials | Build established: Mutant 317 | -10/Materials | Discovered new exit (range 10) 450 | -10/Materials | Discovered new exit (range 3) 524 | -10/Materials | Entered another Materials area 524 | -9/Materials | Accompanied by 1 ally 524 | -9/Materials | Evolved 2 slots: Propulsion x1, Utility x1 631 | -9/Materials | Discovered new exit (range 17) 641 | -9/Materials | Entered another Materials area 641 | -8/Materials | Evolved 2 slots: Propulsion x1, Utility x1 696 | -8/Materials | Identified exit to Garrison 696 | -8/Materials | Entered Garrison 703 | -8/Garrison | Build established: Scavenger-Mutant 776 | -8/Garrison | Triggered checkpoint 846 | -8/Garrison | Lost 5 parts (1p3n1w) 853 | -8/Garrison | Garrison Relay disabled 928 | -8/Garrison | Installed Relay Interface Framework 974 | -8/Garrison | Triggered checkpoint 999 | -8/Garrison | Core integrity fell below 50% 1026 | -8/Garrison | Core integrity fell below 20% 1031 | -8/Garrison | Destroyed by G-47 Trooper with Particle Gun Last Messages --------------- 00988_ Hacking Suite destroyed. 00989_ Grenade Launcher destroyed. 00991_ Com. Wheel destroyed. 00991_ Lgt. Armor Plating destroyed. 00993_ Sml. Storage Unit destroyed. 00994_ G-47 Trooper destroyed. 00996_ Acquired Mace. 01001_ Acquired 40 matter. 01002_ S-10 Pest destroyed. 01008_ Acquired Imp. Heat Sink. Garrison Door activated. 01015_ Critical hit (Burn: +37). 01016_ The unstable cave ceiling collapses. 01022_ Lgt. Nuclear Core destroyed. 01022_ Critical hit (Destroy). 01022_ Arm. Treads destroyed. 01024_ Critical hit (Destroy). 01024_ Lgt. Treads destroyed. 01030_ Com. Wheel destroyed. 01030_ Med. Laser destroyed. Map ----- +----------------------------------------------------+ | ??# #???????????????????????????????????????????? | | ??# #???????????????????????????????????????????? | | ??# #???????????????????????????????????????????? | | ??# #???????????????????????????????????????????? | | ### ###########?????????????????????????????????? | | #?????????????????????????????????? | | ### ^#?????????????????????????????????? | | ??# ######## #?????????????????????????????????? | | ??# #??????# #?????????????????????????????????? | | ??# #??????# ^#?????????????????????????????????? | | ??# #??????# #?????????????????????????????????? | | ??# #??????# #?????????????????????????????????? | | ??# #??????# #######???????????????????????????? | | ??# #??????# ## #???????????????????????????? | | ??# #?????## # ######??????????????????????? | | ### #######* %== *%= ########???????????????? | | " = % % !% ??????????????? | | ### =!%== s ??????????????? | | ??########## ##g ## #####??????????????????? | | ?????????### ## ss## ###????????????????????? | | ?????????# s g #????????????????????? | | ?????????# s #????????????????????? | | ?????????# #????????????????????? | | ?????????# #????????????????????? | | ?????????### ## ## ###????????????????????? | | ???????????# ## ## @#??????????????????????? | | ???????????# Y ?????????????????????? | | ???????????# ???????????????????? | | ???????????# #####??????????????????? | | ???????????## ## ## ##??????????????????????? | | ????????????# ## ## #???????????????????????? | | ????????????# ######## #???????????????????????? | | ????????????# #??????# #???????????????????????? | | ????????????# #??????# #???????????????????????? | | ????????????? ???????# #???????????????????????? | | ????????????? ???????# #???????????????????????? | | ??????????????????????# #???????????????????????? | | ??????????????????????# ????????????????????????? | | ??????????????????????# ????????????????????????? | | ??????????????????????###????????????????????????? | | ?????????????????????????????????????????????????? | | ?????????????????????????????????????????????????? | | ?????????????????????????????????????????????????? | | ?????????????????????????????????????????????????? | | ?????????????????????????????????????????????????? | | ?????????????????????????????????????????????????? | | ?????????????????????????????????????????????????? | | ?????????????????????????????????????????????????? | | ?????????????????????????????????????????????????? | | ?????????????????????????????????????????????????? | +----------------------------------------------------+ Best States ------------- Heat Dissipation 45 Energy Generation 14 Energy Capacity 250 Matter Stores 300 Matter Capacity 300 Sight Range 18 Terrain Scan Density 10 Armor Coverage 150 Evasion (%) 55 Targeting Accuracy 5 Recoil Reduction 2 Offensive Hacking 10 Item Schematics ----------------- None Robot Schematics ------------------ None Fabricated ------------ Nothing Alien Tech Used ----------------- None Achievements -------------- None Challenges ------------ None Game ------ Seed GunSwordSink Manual? 0 Play Time 00:16:20 Cumulative 194.3 hours Start 2025.01.16 @ 01:59:03 End 2025.01.16 @ 02:15:51 Sessions 1 Manual Loads 0 Difficulty Rogue Special Mode None Game No. 267 Rogue 267 Adventurer 0 Explorer 0 Win Type - Total 1 Types 1/0/0/0/0/0/0/0/0 Lore% 33 Gallery% 62 Achievement% 42 Wizard Run 0 Options --------- Layout 1 ASCII 0 Keyboard 0 Movement Mouse Keybinds 0 Fullscreen 2 Font 24/Smallcaps Map View 50x35 Zoom Use 0% Tactical HUD 1 Map Filters NONE Filters NONE Steam 1 RUN: 12d7b242-54e2-47ae-910c-0e1f0baf94c7